fUSD/lending_fUSD_20240117
["ID","MTS","AMOUNT","RATE_DAILY","PERIOD"]
[311968516,1705522261914,-500.0,0.00022191,2]
[311968517,1705522261923,-500.0,0.00022191,2]
[311968518,1705522261933,-500.0,0.00022191,2]
[311968519,1705522261942,-5847.17,0.00022191,2]
[311968520,1705522261951,-500.0,0.00022191,2]
[311968521,1705522261961,-500.0,0.00022191,2]
[311968522,1705522261970,-500.0,0.00022191,2]
[311968523,1705522261980,-500.0,0.00022191,2]
[311968524,1705522261989,-500.0,0.00022191,2]
[311968525,1705522261998,-500.0,0.00022191,2]
[311968526,1705522262007,-500.0,0.00022191,2]
[311968527,1705522262016,-500.0,0.00022191,2]
[311968528,1705522262025,-500.0,0.00022191,2]
[311968529,1705522262034,-500.0,0.00022191,2]
[311968530,1705522262044,-500.0,0.00022191,2]
[311968531,1705522262053,-500.0,0.00022191,2]
[311968532,1705522262062,-210.47,0.00022191,2]
[311968533,1705522262072,-500.0,0.00022191,2]
[311968534,1705522262081,-500.0,0.00022191,2]
[311968535,1705522262090,-500.0,0.00022191,2]
[311968536,1705522262100,-1212.64,0.00022191,2]
[311968537,1705522262109,-500.0,0.00022191,2]
[311968538,1705522262119,-500.0,0.00022191,2]
[311968539,1705522262128,-500.0,0.00022191,2]
[311968540,1705522262138,-500.0,0.00022191,2]
[311968541,1705522262147,-500.0,0.00022191,2]
[311968542,1705522262158,-500.0,0.00022191,2]
[311968543,1705522262167,-639.60267008,0.00022191,2]
[311968544,1705522262176,-596.07,0.00022191,2]
[311968545,1705522262185,-500.0,0.00022191,2]
[311968546,1705522262194,-500.0,0.00022191,2]
[311968547,1705522262203,-500.0,0.00022191,2]
[311968548,1705522262212,-500.0,0.00022191,2]
[311968549,1705522262221,-430.55,0.00022191,2]
[311968550,1705522262230,-500.0,0.00022191,2]
[311968551,1705522262240,-599.74,0.00022191,2]
[311968552,1705522262249,-500.0,0.00022191,2]
[311968553,1705522262258,-500.0,0.00022191,2]
[311968554,1705522262267,-771.69,0.00022191,2]
[311968555,1705522262276,-500.0,0.00022191,2]
[311968556,1705522262285,-500.0,0.00022191,2]
[311968557,1705522262294,-500.0,0.00022191,2]
[311968558,1705522262303,-500.0,0.00022191,2]
[311968559,1705522262312,-500.0,0.00022191,2]
[311968560,1705522262321,-500.0,0.00022191,2]
[311968561,1705522262331,-580.7,0.00022191,2]
[311968562,1705522262340,-500.0,0.00022191,2]
[311968563,1705522262349,-500.0,0.00022191,2]
[311968564,1705522262359,-500.0,0.00022191,2]
[311968565,1705522262368,-500.0,0.00022191,2]
[311968566,1705522262377,-500.0,0.00022191,2]
[311968567,1705522262386,-500.0,0.00022191,2]
[311968568,1705522262395,-500.0,0.00022191,2]
[311968569,1705522262404,-500.0,0.00022191,2]
[311968570,1705522262415,-500.0,0.00022191,2]
[311968571,1705522262424,-219.3,0.00022191,2]
[311968572,1705522262433,-511.58965625,0.00022191,2]
[311968573,1705522262442,-500.0,0.00022191,2]
[311968574,1705522262452,-500.0,0.00022191,2]
[311968575,1705522262461,-326.62326001,0.00022191,2]
[311968576,1705522262726,-173.37673999,0.00022191,2]
[311968577,1705522262735,-500.0,0.00022191,2]
[311968578,1705522262744,-40.85973261,0.00022191,2]
[311968579,1705522262756,-459.14026739,0.00022191,2]
[311968580,1705522262766,-500.0,0.00022191,2]
[311968581,1705522262776,-64.55973261,0.00022191,2]
[311968582,1705522262788,-435.44026739,0.00022191,2]
[311968583,1705522262797,-392.73,0.00022191,2]
[311968584,1705522262806,-317.83223259,0.00022191,2]
[311968585,1705522262818,-182.16776741,0.00022191,2]
[311968586,1705522262827,-249.4388243,0.00022191,2]
[311968587,1705522262838,-250.5611757,0.00022191,2]
[311968588,1705522262848,-500.0,0.00022191,2]
[311968589,1705522262857,-95.48804516,0.00022191,2]
[311968590,1705522262868,-254.86173603,0.00022191,2]
[311968591,1705522262879,-149.65021881,0.00022191,2]
[311968592,1705522262889,-131.48615454,0.00022191,2]
[311968593,1705522262900,-368.51384546,0.00022191,2]
[311968594,1705522262910,-500.0,0.00022191,2]
[311968595,1705522262920,-500.0,0.00022191,2]
[311968596,1705522262929,-81.65398832,0.00022191,2]
[311968597,1705522638751,164.33,0.00016442,2]
[311968600,1705522839757,-503.84036235,0.00018706,2]
[311968601,1705522839783,-1043.85511686,0.00018706,2]
[311968602,1705522839805,-404.2638852,0.00018707,2]
[311968603,1705522839829,-538.79,0.00018711,2]
[311968604,1705522839852,-2106.51378158,0.00019724,5]
[311968605,1705522839876,-171.19,0.00020513,2]
[311968606,1705522839900,-200.0,0.00020535,2]
[311968607,1705522839922,-157.39,0.00020762,2]
[311968608,1705522839944,-150.0,0.00020762,2]
[311968609,1705522839967,-23900.0,0.00020763,2]
[311968610,1705522839991,-156.55,0.00020895,2]
[311968611,1705522840015,-261.76,0.00020931,2]
[311968612,1705522840037,-1578.5326304,0.00020958,2]
[311968613,1705522840057,-150.99,0.00020975,2]
[311968614,1705522840077,-4268.31,0.00020975,2]
[311968615,1705522840097,-3367.91,0.00020975,2]
[311968616,1705522840119,-538.79,0.00020975,2]
[311968617,1705522840142,-1681.52,0.00020994,2]
[311968618,1705522840163,-175.74,0.00020994,2]
[311968619,1705522864504,18644.05422361,0.00020822,2]
[311968622,1705523003326,-155.0,0.0001874,2]
[311968626,1705523125568,-300.0,0.0001867,2]
[311968653,1705523413162,171.47,0.00016712,2]
[311968655,1705523423426,-503.84036235,0.00018576,2]
[311968656,1705523423447,-200.98286647,0.00018577,2]
[311968657,1705523423470,-484.91,0.00018671,2]
[311968658,1705523423491,-0.15509998,0.0001874,2]
[311968659,1705523423511,-7103.57322363,0.00020121,5]
[311968660,1705523423533,-9266.71,0.00020122,2]
[311968661,1705523423555,-12587.85,0.0002015,2]
[311968662,1705523423577,-1569.41,0.00020274,2]
[311968663,1705523423598,-840.0,0.00020284,2]
[311968664,1705523423619,-250.0,0.000205,2]
[311968665,1705523423640,-156.11,0.00020556,2]
[311968666,1705523423662,-155.43739986,0.00020574,2]
[311968667,1705523423682,-248.73,0.00020674,2]
[311968668,1705523423702,-499.99,0.00020674,2]
[311968669,1705523423724,-156.55,0.00020735,2]
[311968670,1705523423744,-217.99,0.00020758,2]
[311968671,1705523423767,-1333.19880575,0.000208,2]
[311968672,1705523423788,-318.65326446,0.0002082,2]
[311968673,1705523423808,-39837.94808274,0.00020822,2]
[311968674,1705523423829,-150.0,0.00020921,2]
[311968675,1705523423852,-484.91,0.00020935,2]
[311968676,1705523423873,-737.67,0.00021058,2]
[311968677,1705523423895,-156.55,0.00021095,2]
[311968678,1705523423918,-261.76,0.00021152,2]
[311968679,1705523423939,-150.0,0.00021191,2]
[311968680,1705523423959,-154.04137752,0.00021191,2]
[311968681,1705523423981,-156.11,0.000212,2]
[311968682,1705523424002,-1569.41,0.00021252,2]
[311968683,1705523424024,-155.43739984,0.00021333,2]
[311968684,1705523424047,-410.44,0.00021338,2]
[311968685,1705523424069,-406.37,0.0002137,2]
[311968686,1705523424089,-416.31,0.0002137,2]
[311968687,1705523424110,-293.17,0.0002137,2]
[311968688,1705523424132,-313.11,0.0002137,2]
[311968689,1705523424155,-261.76,0.00021372,2]
[311968690,1705523424176,-1578.53263039,0.00021415,2]
[311968691,1705523424198,-156.55,0.00021455,2]
[311968692,1705523424220,-724.94,0.00021486,2]
[311968693,1705523424242,-11539.2266,0.00021515,2]
[311968694,1705523424264,-1000.0,0.00021515,2]
[311968695,1705523424287,-19324.65,0.00021515,2]
[311968696,1705523424309,-576.7324,0.00021515,2]
[311968697,1705523424333,-261.76,0.00021592,2]
[311968698,1705523424354,-1000.0,0.00021615,2]
[311968699,1705523424378,-35528.52048701,0.00021615,2]
[311968709,1705523431778,-1210.24940779,0.00021615,2]
[311968710,1705523431836,-727.69660047,0.00021615,2]
[311968711,1705523431893,-981.14561195,0.00021615,2]
[311968712,1705523431904,-309.36977282,0.00021615,2]
[311968713,1705523431916,-49159.35881996,0.00021615,2]
[311968714,1705523431925,-150.0,0.00021616,2]
[311968715,1705523431934,-150.0,0.00021616,2]
[311968716,1705523431943,-150.0,0.00021616,2]
[311968717,1705523431953,-150.0,0.00021616,2]
[311968718,1705523431964,-418.32,0.00021616,2]
[311968719,1705523431974,-314.52,0.00021616,2]
[311968720,1705523431982,-164.07,0.00021644,2]
[311968721,1705523431992,-150.0,0.00021644,2]
[311968722,1705523432002,-408.47,0.00021644,2]
[311968723,1705523432011,-418.32,0.00021644,2]
[311968724,1705523432021,-408.47,0.00021644,2]
[311968725,1705523432030,-272.29,0.00021644,2]
[311968726,1705523432039,-294.27,0.00021644,2]
[311968727,1705523432049,-314.52,0.00021644,2]
[311968728,1705523432058,-150.0,0.00021673,2]
[311968729,1705523432067,-150.0,0.0002168,2]
[311968730,1705523432077,-436.31723575,0.00021697,2]
[311968731,1705523432086,-211.00410547,0.00021739,2]
[311968732,1705523432095,-352.4,0.0002174,2]
[311968733,1705523432104,-256.83,0.0002174,2]
[311968734,1705523432114,-13979.94151192,0.000218,2]
[311968736,1705523432124,-150.0,0.00021803,2]
[311968738,1705523432133,-261.76,0.00021813,2]
[311968740,1705523432142,-202.57156383,0.00021814,2]
[311968742,1705523432152,-156.55,0.00021815,2]
[311968744,1705523432161,-290.782534,0.00021817,2]
[311968746,1705523432170,-224.57098569,0.00021817,2]
[311968748,1705523432180,-448.88050216,0.00021817,2]
[311968749,1705523432189,-223.64175143,0.00021817,2]
[311968751,1705523432198,-156.11,0.00021845,2]
[311968753,1705523432207,-256.83,0.00021877,2]
[311968755,1705523432216,-448.88050213,0.00021886,2]
[311968757,1705523432226,-495.2481444,0.00021907,2]
[311968759,1705523432235,-88724.42690615,0.0002191,2]
[311968762,1705523432251,-25364.4000696,0.0002191,2]
[311968765,1705523432270,-1881.09910861,0.0002191,2]
[311968767,1705523432281,-292.97642527,0.0002191,2]
[311968769,1705523432292,-815.28169388,0.0002191,2]
[311968771,1705523432303,-1152.42565523,0.0002191,2]
[311968775,1705523432333,-88.38118449,0.0002191,2]
[311968778,1705523432344,-550.39902138,0.0002191,2]
[311968780,1705523432356,-1926.7925768,0.0002191,2]
[311968783,1705523432373,-6469.86336444,0.0002191,2]
[311968914,1705523437801,-319.6918195,0.0002191,2]
[311968915,1705523437872,-3279.9314489,0.0002191,2]
[311968916,1705523437917,-9590.0,0.0002191,2]
[311968917,1705523437928,-516.35614198,0.0002191,2]
[311968918,1705523437983,-272.07541425,0.0002191,2]
[311968919,1705523437995,-467.91216912,0.0002191,2]
[311968920,1705523438095,-2001.84913793,0.0002191,2]
[311969212,1705523440921,-7103.57322363,0.00021909,5]
[311969214,1705523440930,-430.05656718,0.00021909,2]
[311969216,1705523440940,-503.84036235,0.00021909,2]
[311969218,1705523440949,-19604.61786247,0.0002191,2]
[311969220,1705523440960,-76356.86913231,0.0002191,2]
[311969222,1705523440972,-403.9439457,0.00021915,2]
[311969224,1705523440981,-229.03990614,0.00021915,2]
[311969226,1705523440991,-3176.81093122,0.00021916,2]
[311969228,1705523441001,-150.0,0.00021916,2]
[311969230,1705523441012,-735.35,0.00021917,2]
[311969232,1705523441022,-536.9402125,0.00021917,2]
[311969234,1705523441031,-500.0,0.00021917,2]
[311969236,1705523441040,-500.0,0.00021917,2]
[311969237,1705523441050,-500.0,0.00021917,2]
[311969239,1705523441060,-500.0,0.00021917,2]
[311969241,1705523441070,-500.0,0.00021917,2]
[311969243,1705523441080,-500.0,0.00021917,2]
[311969245,1705523441090,-500.0,0.00021917,2]
[311969247,1705523441100,-500.0,0.00021917,2]
[311969249,1705523441109,-500.0,0.00021917,2]
[311969251,1705523441119,-500.0,0.00021917,2]
[311969253,1705523441129,-500.0,0.00021917,2]
[311969255,1705523441138,-500.0,0.00021917,2]
[311969257,1705523441148,-500.0,0.00021917,2]
[311969259,1705523441157,-162.33819278,0.00021917,2]
[311969261,1705523441167,-500.0,0.00021917,2]
[311969263,1705523441176,-500.0,0.00021917,2]
[311969265,1705523441185,-542.18,0.00021917,2]
[311969267,1705523441195,-1000.0,0.00021917,2]
[311969269,1705523441205,-500.0,0.00021917,2]
[311969271,1705523441214,-500.0,0.00021917,2]
[311969273,1705523441224,-500.0,0.00021917,2]
[311969276,1705523441238,-500.0,0.00021917,2]
[311969278,1705523441247,-500.0,0.00021917,2]
[311969279,1705523441257,-500.0,0.00021917,2]
[311969280,1705523441266,-500.0,0.00021917,2]
[311969281,1705523441276,-500.0,0.00021917,2]
[311969282,1705523441285,-500.0,0.00021917,2]
[311969283,1705523441294,-500.0,0.00021917,2]
[311969284,1705523441303,-500.0,0.00021917,2]
[311969285,1705523441313,-500.0,0.00021917,2]
[311969286,1705523441322,-500.0,0.00021917,2]
[311969287,1705523441332,-500.0,0.00021917,2]
[311969288,1705523441341,-601.05,0.00021917,2]
[311969289,1705523441350,-500.0,0.00021917,2]
[311969291,1705523441359,-634.1,0.00021917,2]
[311969293,1705523441368,-500.0,0.00021917,2]
[311969295,1705523441379,-500.0,0.00021917,2]
[311969297,1705523441389,-500.0,0.00021917,2]
[311969299,1705523441399,-500.0,0.00021917,2]
[311969301,1705523441409,-500.0,0.00021917,2]
[311969303,1705523441418,-500.0,0.00021917,2]
[311969305,1705523441427,-500.0,0.00021917,2]
[311969307,1705523441437,-500.0,0.00021917,2]
[311969309,1705523441446,-500.0,0.00021917,2]
[311969311,1705523441455,-500.0,0.00021917,2]
[311969313,1705523441465,-500.0,0.00021917,2]
[311969315,1705523441474,-500.0,0.00021917,2]
[311969317,1705523441483,-500.0,0.00021917,2]
[311969319,1705523441492,-500.0,0.00021917,2]
[311969321,1705523441501,-201.62256085,0.00021917,2]
[311969323,1705523441511,-500.0,0.00021917,2]
[311969325,1705523441520,-500.0,0.00021917,2]
[311969327,1705523441530,-500.0,0.00021917,2]
[311969329,1705523441539,-500.0,0.00021917,2]
[311969331,1705523441548,-500.0,0.00021917,2]
[311969333,1705523441558,-500.0,0.00021917,2]
[311969335,1705523441568,-500.0,0.00021917,2]
[311969337,1705523441578,-500.0,0.00021917,2]
[311969339,1705523441587,-500.0,0.00021917,2]
[311969341,1705523441597,-500.0,0.00021917,2]
[311969343,1705523441607,-500.0,0.00021917,2]
[311969345,1705523441616,-500.0,0.00021917,2]
[311969347,1705523441625,-500.0,0.00021917,2]
[311969349,1705523441635,-500.0,0.00021917,2]
[311969351,1705523441645,-500.0,0.00021917,2]
[311969354,1705523441654,-500.0,0.00021917,2]
[311969356,1705523441663,-439.84842124,0.00021917,2]
[311969358,1705523441672,-500.0,0.00021917,2]
[311969360,1705523441682,-500.0,0.00021917,2]
[311969361,1705523441691,-500.0,0.00021917,2]
[311969364,1705523441700,-500.0,0.00021917,2]
[311969366,1705523441710,-500.0,0.00021917,2]
[311969368,1705523441719,-500.0,0.00021917,2]
[311969370,1705523441728,-300.0,0.00021917,2]
[311969372,1705523441741,-500.0,0.00021917,2]
[311969374,1705523441751,-503.49,0.00021917,2]
[311969376,1705523441760,-500.0,0.00021917,2]
[311969378,1705523441770,-500.0,0.00021917,2]
[311969380,1705523441779,-500.0,0.00021917,2]
[311969382,1705523441789,-500.0,0.00021917,2]
[311969384,1705523441798,-504.02958817,0.00021917,2]
[311969386,1705523441808,-500.0,0.00021917,2]
[311969388,1705523441817,-500.0,0.00021917,2]
[311969390,1705523441827,-500.0,0.00021917,2]
[311969393,1705523441837,-500.0,0.00021917,2]
[311969395,1705523441846,-500.0,0.00021917,2]
[311969397,1705523441855,-500.0,0.00021917,2]
[311969399,1705523441864,-567.22468271,0.00021917,2]
[311969401,1705523441874,-500.0,0.00021917,2]
[311969403,1705523441884,-500.0,0.00021917,2]
[311969405,1705523441893,-500.0,0.00021917,2]
[311969407,1705523441902,-500.0,0.00021917,2]
[311969409,1705523441912,-500.0,0.00021917,2]
[311969411,1705523441921,-500.0,0.00021917,2]
[311969413,1705523441930,-500.0,0.00021917,2]
[311969415,1705523441940,-500.0,0.00021917,2]
[311969417,1705523441949,-500.0,0.00021917,2]
[311969419,1705523441962,-500.0,0.00021917,2]
[311969421,1705523441971,-500.0,0.00021917,2]
[311969423,1705523441980,-500.0,0.00021917,2]
[311969425,1705523441992,-500.0,0.00021917,2]
[311969427,1705523442002,-500.0,0.00021917,2]
[311969429,1705523442011,-500.0,0.00021917,2]
[311969432,1705523442022,-500.0,0.00021917,2]
[311969434,1705523442031,-504.06839089,0.00021917,2]
[311969435,1705523442042,-500.0,0.00021917,2]
[311969438,1705523442053,-500.0,0.00021917,2]
[311969440,1705523442062,-500.0,0.00021917,2]
[311969442,1705523442071,-500.0,0.00021917,2]
[311969444,1705523442084,-500.0,0.00021917,2]
[311969446,1705523442093,-500.0,0.00021917,2]
[311969448,1705523442103,-500.0,0.00021917,2]
[311969450,1705523442113,-500.0,0.00021917,2]
[311969452,1705523442122,-500.0,0.00021917,2]
[311969454,1705523442131,-500.0,0.00021917,2]
[311969456,1705523442140,-500.0,0.00021917,2]
[311969458,1705523442150,-500.0,0.00021917,2]
[311969460,1705523442159,-500.0,0.00021917,2]
[311969462,1705523442169,-500.0,0.00021917,2]
[311969464,1705523442178,-500.0,0.00021917,2]
[311969466,1705523442188,-500.0,0.00021917,2]
[311969468,1705523442197,-500.0,0.00021917,2]
[311969470,1705523442207,-500.0,0.00021917,2]
[311969472,1705523442216,-500.0,0.00021917,2]
[311969474,1705523442225,-500.0,0.00021917,2]
[311969476,1705523442234,-500.0,0.00021917,2]
[311969478,1705523442244,-500.0,0.00021917,2]
[311969480,1705523442253,-500.0,0.00021917,2]
[311969482,1705523442262,-500.0,0.00021917,2]
[311969485,1705523442272,-500.0,0.00021917,2]
[311969487,1705523442281,-500.0,0.00021917,2]
[311969489,1705523442291,-500.0,0.00021917,2]
[311969491,1705523442300,-500.0,0.00021917,2]
[311969493,1705523442311,-526.82286384,0.00021917,2]
[311969495,1705523442320,-2000.0,0.00021917,2]
[311969497,1705523442330,-1991.90784554,0.00021917,2]
[311969499,1705523442340,-509.55493732,0.00021917,2]
[311969501,1705523442349,-584.67,0.00021917,2]
[311969503,1705523442360,-500.0,0.00021917,2]
[311969505,1705523442369,-500.0,0.00021917,2]
[311969507,1705523442379,-500.0,0.00021917,2]
[311969509,1705523442387,-500.0,0.00021917,2]
[311969511,1705523442396,-500.0,0.00021917,2]
[311969513,1705523442406,-500.0,0.00021917,2]
[311969515,1705523442415,-500.0,0.00021917,2]
[311969517,1705523442424,-500.0,0.00021917,2]
[311969519,1705523442434,-506.85533043,0.00021917,2]
[311969521,1705523442443,-1000.0,0.00021917,2]
[311969523,1705523442453,-500.0,0.00021917,2]
[311969526,1705523442464,-412.47,0.00021917,2]
[311969528,1705523442473,-508.72,0.00021917,2]
[311969530,1705523442482,-500.0,0.00021917,2]
[311969532,1705523442492,-500.0,0.00021917,2]
[311969534,1705523442501,-509.26331807,0.00021917,2]
[311969536,1705523442510,-536.48,0.00021917,2]
[311969538,1705523442519,-500.0,0.00021917,2]
[311969540,1705523442528,-500.0,0.00021917,2]
[311969542,1705523442537,-500.0,0.00021917,2]
[311969544,1705523442547,-500.0,0.00021917,2]
[311969546,1705523442556,-500.0,0.00021917,2]
[311969549,1705523442565,-500.0,0.00021917,2]
[311969552,1705523442574,-500.0,0.00021917,2]
[311969555,1705523442583,-500.0,0.00021917,2]
[311969558,1705523442593,-500.0,0.00021917,2]
[311969598,1705523442953,-306.92,0.00021917,2]
[311969600,1705523442969,-500.0,0.00021917,2]
[311969602,1705523442983,-500.0,0.00021917,2]
[311969604,1705523442994,-500.0,0.00021917,2]
[311969606,1705523443005,-500.0,0.00021917,2]
[311969608,1705523443017,-500.0,0.00021917,2]
[311969610,1705523443028,-500.0,0.00021917,2]
[311969612,1705523443038,-500.0,0.00021917,2]
[311969614,1705523443048,-500.0,0.00021917,2]
[311969616,1705523443058,-500.0,0.00021917,2]
[311969618,1705523443068,-500.0,0.00021917,2]
[311969620,1705523443077,-500.0,0.00021917,2]
[311969622,1705523443087,-500.0,0.00021917,2]
[311969624,1705523443097,-500.0,0.00021917,2]
[311969626,1705523443107,-500.0,0.00021917,2]
[311969628,1705523443116,-500.0,0.00021917,2]
[311969630,1705523443126,-500.0,0.00021917,2]
[311969632,1705523443141,-500.0,0.00021917,2]
[311969633,1705523443150,-500.0,0.00021917,2]
[311969636,1705523443164,-500.0,0.00021917,2]
[311969638,1705523443174,-500.0,0.00021917,2]
[311969640,1705523443183,-500.0,0.00021917,2]
[311969642,1705523443193,-504.08018548,0.00021917,2]
[311969644,1705523443203,-500.0,0.00021917,2]
[311969646,1705523443213,-500.0,0.00021917,2]
[311969648,1705523443223,-500.0,0.00021917,2]
[311969650,1705523443232,-500.0,0.00021917,2]
[311969652,1705523443243,-500.0,0.00021917,2]
[311969654,1705523443253,-634.64,0.00021917,2]
[311969656,1705523443263,-500.0,0.00021917,2]
[311969658,1705523443273,-500.0,0.00021917,2]
[311969660,1705523443282,-511.89715798,0.00021917,2]
[311969662,1705523443292,-632.03,0.00021917,2]
[311969664,1705523443302,-500.0,0.00021917,2]
[311969665,1705523443311,-500.0,0.00021917,2]
[311969667,1705523443321,-500.0,0.00021917,2]
[311969670,1705523443331,-500.0,0.00021917,2]
[311969671,1705523443341,-500.0,0.00021917,2]
[311969673,1705523443351,-500.0,0.00021917,2]
[311969676,1705523443361,-500.0,0.00021917,2]
[311969678,1705523443371,-500.0,0.00021917,2]
[311969680,1705523443385,-500.0,0.00021917,2]
[311969682,1705523443394,-500.0,0.00021917,2]
[311969684,1705523443404,-500.0,0.00021917,2]
[311969686,1705523443413,-500.0,0.00021917,2]
[311969688,1705523443423,-500.0,0.00021917,2]
[311969690,1705523443432,-500.0,0.00021917,2]
[311969692,1705523443441,-500.0,0.00021917,2]
[311969693,1705523443450,-500.0,0.00021917,2]
[311969695,1705523443459,-500.0,0.00021917,2]
[311969698,1705523443468,-500.0,0.00021917,2]
[311969699,1705523443478,-500.0,0.00021917,2]
[311969702,1705523443488,-502.62589597,0.00021917,2]
[311969704,1705523443497,-500.0,0.00021917,2]
[311969706,1705523443507,-500.0,0.00021917,2]
[311969708,1705523443516,-500.0,0.00021917,2]
[311969710,1705523443525,-500.0,0.00021917,2]
[311969712,1705523443535,-500.0,0.00021917,2]
[311969714,1705523443544,-253.01152683,0.00021917,2]
[311969715,1705523443553,-500.0,0.00021917,2]
[311969717,1705523443563,-500.0,0.00021917,2]
[311969719,1705523443572,-500.0,0.00021917,2]
[311969721,1705523443581,-500.0,0.00021917,2]
[311969723,1705523443591,-500.0,0.00021917,2]
[311969726,1705523443600,-500.0,0.00021917,2]
[311969727,1705523443610,-500.0,0.00021917,2]
[311969729,1705523443619,-500.0,0.00021917,2]
[311969731,1705523443629,-500.0,0.00021917,2]
[311969733,1705523443642,-589.17,0.00021917,2]
[311969736,1705523443652,-500.0,0.00021917,2]
[311969738,1705523443661,-450.63744595,0.00021917,2]
[311969740,1705523443671,-500.0,0.00021917,2]
[311969742,1705523443680,-460.38751372,0.00021917,2]
[311969744,1705523443690,-500.0,0.00021917,2]
[311969746,1705523443699,-500.0,0.00021917,2]
[311969748,1705523443709,-500.0,0.00021917,2]
[311969750,1705523443718,-500.0,0.00021917,2]
[311969752,1705523443727,-500.0,0.00021917,2]
[311969753,1705523443736,-231.12366434,0.00021917,2]
[311969755,1705523443749,-500.0,0.00021917,2]
[311969757,1705523443758,-500.0,0.00021917,2]
[311969760,1705523443768,-500.0,0.00021917,2]
[311969762,1705523443778,-500.0,0.00021917,2]
[311969763,1705523443787,-517.84221126,0.00021917,2]
[311969766,1705523443796,-500.0,0.00021917,2]
[311969768,1705523443806,-500.0,0.00021917,2]
[311969770,1705523443815,-500.0,0.00021917,2]
[311969772,1705523443824,-500.0,0.00021917,2]
[311969773,1705523443833,-500.0,0.00021917,2]
[311969776,1705523443843,-500.0,0.00021917,2]
[311969777,1705523443852,-413.05200011,0.00021917,2]
[311969780,1705523443861,-500.0,0.00021917,2]
[311969782,1705523443870,-500.0,0.00021917,2]
[311969784,1705523443879,-500.0,0.00021917,2]
[311969786,1705523443890,-516.01,0.00021917,2]
[311969788,1705523443900,-570.43,0.00021917,2]
[311969790,1705523443908,-500.0,0.00021917,2]
[311969792,1705523443917,-500.0,0.00021917,2]
[311969794,1705523443926,-500.0,0.00021917,2]
[311969796,1705523443935,-500.0,0.00021917,2]
[311969798,1705523443944,-500.0,0.00021917,2]
[311969800,1705523443953,-607.09,0.00021917,2]
[311969802,1705523443963,-500.0,0.00021917,2]
[311969804,1705523443974,-500.0,0.00021917,2]
[311969806,1705523443983,-562.5,0.00021917,2]
[311969808,1705523443992,-500.0,0.00021917,2]
[311969810,1705523444003,-500.0,0.00021917,2]
[311969812,1705523444012,-500.0,0.00021917,2]
[311969814,1705523444021,-500.0,0.00021917,2]
[311969815,1705523444030,-500.0,0.00021917,2]
[311969817,1705523444039,-326.58918329,0.00021917,2]
[311969820,1705523444051,-504.6365883,0.00021917,2]
[311969821,1705523444061,-500.0,0.00021917,2]
[311969824,1705523444070,-649.88,0.00021917,2]
[311969825,1705523444079,-500.0,0.00021917,2]
[311969828,1705523444088,-500.0,0.00021917,2]
[311969830,1705523444098,-500.0,0.00021917,2]
[311969832,1705523444107,-500.0,0.00021917,2]
[311969834,1705523444117,-500.0,0.00021917,2]
[311969836,1705523444126,-500.0,0.00021917,2]